[Event "*** Titled Tuesday Blitz"]
[Site "Chess.com"]
[Date "2019.05.07"]
[Round "9"]
[White "sergeikim"]
[Black "Veiso"]
[Result "0-1"]
[WhiteElo "2450"]
[BlackElo "2385"]
[TimeControl "180+2"]
[EndTime "15:08:40 PDT"]
[Termination "Veiso won by resignation"]

1. d4 {[%clk 0:03:01.9]} 1... Nf6 {[%clk 0:02:59.6]} 2. c4 {[%clk 0:03:02.7]}
2... c5 {[%clk 0:03:00.9]} 3. d5 {[%clk 0:03:03.1]} 3... e6 {[%clk 0:03:02.5]}
4. Nc3 {[%clk 0:03:03.2]} 4... exd5 {[%clk 0:03:04.4]} 5. cxd5 {[%clk
0:03:04.4]} 5... d6 {[%clk 0:03:06]} 6. e4 {[%clk 0:03:05.4]} 6... g6 {[%clk
0:03:07.6]} 7. Nge2 {[%clk 0:03:06.4]} 7... Bg7 {[%clk 0:03:06.6]} 8. Ng3 {[%clk
0:03:07.1]} 8... O-O {[%clk 0:03:08.1]} 9. Be2 {[%clk 0:03:07.5]} 9... b6 {[%clk
0:03:09.6]} 10. O-O {[%clk 0:03:06.9]} 10... Ba6 {[%clk 0:03:10.9]} 11. Bf4
{[%clk 0:03:06.4]} 11... Ne8 {[%clk 0:02:59.3]} 12. Qd2 {[%clk 0:03:00.7]} 12...
Bxe2 {[%clk 0:02:55.7]} 13. Ncxe2 {[%clk 0:02:57.2]} 13... Qf6 {[%clk
0:02:49.8]} 14. Rab1 {[%clk 0:02:55.4]} 14... Qe7 {[%clk 0:02:31.5]} 15. Bh6
{[%clk 0:02:53]} 15... Nd7 {[%clk 0:02:31.5]} 16. Bxg7 {[%clk 0:02:52.9]} 16...
Nxg7 {[%clk 0:02:33.4]} 17. f4 {[%clk 0:02:53.1]} 17... f5 {[%clk 0:02:34.7]}
18. Nc3 {[%clk 0:02:51.3]} 18... fxe4 {[%clk 0:02:34.3]} 19. Ncxe4 {[%clk
0:02:51.3]} 19... Nf6 {[%clk 0:02:33.7]} 20. Rbe1 {[%clk 0:02:44.2]} 20... Nxe4
{[%clk 0:02:32.9]} 21. Nxe4 {[%clk 0:02:41.1]} 21... Nf5 {[%clk 0:02:33.8]} 22.
Ng5 {[%clk 0:02:38.9]} 22... Qf6 {[%clk 0:02:30]} 23. Ne6 {[%clk 0:02:38.9]}
23... Rf7 {[%clk 0:02:28.2]} 24. Re4 {[%clk 0:02:24.9]} 24... Re8 {[%clk
0:02:23.8]} 25. Rfe1 {[%clk 0:02:24.7]} 25... Rfe7 {[%clk 0:02:20.6]} 26. g4
{[%clk 0:01:56.4]} 26... Nd4 {[%clk 0:02:17.2]} 27. Qg2 {[%clk 0:01:27.8]} 27...
Nxe6 {[%clk 0:02:12]} 28. dxe6 {[%clk 0:01:24]} 28... Rxe6 {[%clk 0:02:13.4]}
29. Rxe6 {[%clk 0:01:24.1]} 29... Rxe6 {[%clk 0:02:15]} 30. Qa8+ {[%clk
0:01:17.7]} 30... Kg7 {[%clk 0:02:13.2]} 31. Qxa7+ {[%clk 0:01:17.5]} 31... Qf7
{[%clk 0:02:06.3]} 32. Qxf7+ {[%clk 0:01:02]} 32... Kxf7 {[%clk 0:02:08.2]} 33.
Rd1 {[%clk 0:01:02.3]} 33... Ke7 {[%clk 0:02:09.1]} 34. Kf2 {[%clk 0:01:02.2]}
34... Re4 {[%clk 0:02:09.7]} 35. Kf3 {[%clk 0:01:02.6]} 35... Rc4 {[%clk
0:02:10.1]} 36. Rd2 {[%clk 0:01:00.4]} 36... Ke6 {[%clk 0:02:09.9]} 37. Re2+
{[%clk 0:00:59.5]} 37... Kd7 {[%clk 0:02:10.7]} 38. f5 {[%clk 0:00:59.3]} 38...
gxf5 {[%clk 0:02:05.8]} 39. gxf5 {[%clk 0:01:00]} 39... Rh4 {[%clk 0:02:07.7]}
40. Kg3 {[%clk 0:00:54.6]} 40... Rh6 {[%clk 0:02:05.5]} 41. Kg4 {[%clk
0:00:55.1]} 41... d5 {[%clk 0:02:07]} 42. Kg5 {[%clk 0:00:55.7]} 42... Rh3
{[%clk 0:02:07.9]} 43. f6 {[%clk 0:00:54.6]} 43... Rf3 {[%clk 0:02:08.4]} 44.
Re7+ {[%clk 0:00:54]} 44... Kd6 {[%clk 0:02:09.8]} 45. Rxh7 {[%clk 0:00:54.6]}
45... d4 {[%clk 0:02:11.2]} 46. Rh8 {[%clk 0:00:55.1]} 46... d3 {[%clk 0:02:11]}
47. Kg6 {[%clk 0:00:50.6]} 47... Kc7 {[%clk 0:02:08.1]} 48. Rh7+ {[%clk
0:00:42.4]} 48... Kc6 {[%clk 0:02:08.5]} 49. Rh8 {[%clk 0:00:43.2]} 49... Kc7
{[%clk 0:02:09.7]} 50. Rh7+ {[%clk 0:00:44.1]} 50... Kc6 {[%clk 0:02:09.5]} 51.
Rh8 {[%clk 0:00:43.8]} 51... Rf4 {[%clk 0:01:46.7]} 52. Rd8 {[%clk 0:00:36.1]}
52... Rd4 {[%clk 0:01:46.9]} 53. Rxd4 {[%clk 0:00:36.5]} 53... cxd4 {[%clk
0:01:48.8]} 54. f7 {[%clk 0:00:38]} 54... d2 {[%clk 0:01:50.7]} 55. f8=Q {[%clk
0:00:39.2]} 55... d1=Q {[%clk 0:01:52.1]} 56. Qf6+ {[%clk 0:00:31.8]} 56... Kd5
{[%clk 0:01:50.8]} 57. h4 {[%clk 0:00:29.9]} 57... Qg4+ {[%clk 0:01:46.3]} 58.
Kf7 {[%clk 0:00:17.7]} 58... d3 {[%clk 0:01:29.7]} 59. Qd8+ {[%clk 0:00:17.4]}
59... Ke4 {[%clk 0:01:28.1]} 60. Qe7+ {[%clk 0:00:17.3]} 60... Kd4 {[%clk
0:01:25.2]} 61. Qd6+ {[%clk 0:00:16.9]} 61... Ke4 {[%clk 0:01:26.4]} 62. Qe7+
{[%clk 0:00:17.2]} 62... Kf3 {[%clk 0:01:25.8]} 63. Qd8 {[%clk 0:00:10.6]} 63...
Qf4+ {[%clk 0:01:24.3]} 64. Kg7 {[%clk 0:00:11.5]} 64... d2 {[%clk 0:01:24.4]}
65. h5 {[%clk 0:00:12.6]} 65... Qe5+ {[%clk 0:01:20.4]} 66. Kg6 {[%clk
0:00:11.3]} 66... Qe4+ {[%clk 0:01:17]} 67. Kg7 {[%clk 0:00:12.1]} 67... Qe2
{[%clk 0:01:11]} 68. Qd5+ {[%clk 0:00:11.8]} 68... Kf2 {[%clk 0:01:11.2]} 69.
Qf5+ {[%clk 0:00:10]} 69... Ke1 {[%clk 0:01:12.2]} 70. h6 {[%clk 0:00:06.9]}
70... d1=Q {[%clk 0:01:12.6]} 71. h7 {[%clk 0:00:08.3]} 71... Qg4+ {[%clk
0:01:12.2]} 72. Qxg4 {[%clk 0:00:07.4]} 72... Qxg4+ {[%clk 0:01:13.1]} 73. Kf6
{[%clk 0:00:08.4]} 73... Qd4+ {[%clk 0:01:13.8]} 74. Kf7 {[%clk 0:00:08.8]}
74... Qxb2 {[%clk 0:01:07.6]} 0-1

[Event "*** Titled Tuesday Blitz"]
[Site "Chess.com"]
[Date "2019.05.07"]
[Round "9"]
[White "Yurovskykh_Oleksandr"]
[Black "pedroholly22"]
[Result "0-1"]
[WhiteElo "2523"]
[BlackElo "2294"]
[TimeControl "180+2"]
[EndTime "15:08:41 PDT"]
[Termination "pedroholly22 won by resignation"]

1. d4 {[%clk 0:03:00]} 1... Nf6 {[%clk 0:02:45.4]} 2. Nf3 {[%clk 0:02:59.9]}
2... g6 {[%clk 0:02:44.6]} 3. Bg5 {[%clk 0:02:59.4]} 3... Bg7 {[%clk 0:02:44.5]}
4. Nbd2 {[%clk 0:03:00.1]} 4... O-O {[%clk 0:02:44.3]} 5. c3 {[%clk 0:03:00.1]}
5... d6 {[%clk 0:02:44.5]} 6. e4 {[%clk 0:03:01.3]} 6... Nc6 {[%clk 0:02:44.2]}
7. Be2 {[%clk 0:03:01.1]} 7... e5 {[%clk 0:02:44.8]} 8. dxe5 {[%clk 0:03:03]}
8... dxe5 {[%clk 0:02:46.7]} 9. Qc2 {[%clk 0:02:59.7]} 9... h6 {[%clk
0:02:46.7]} 10. Bh4 {[%clk 0:03:00]} 10... g5 {[%clk 0:02:47.3]} 11. Bg3 {[%clk
0:02:59.8]} 11... Qe7 {[%clk 0:02:40.4]} 12. Nc4 {[%clk 0:02:58.3]} 12... Nd7
{[%clk 0:02:34]} 13. Nfd2 {[%clk 0:02:54.8]} 13... Nb6 {[%clk 0:02:32.2]} 14.
Ne3 {[%clk 0:02:55.2]} 14... Be6 {[%clk 0:02:26.7]} 15. Bg4 {[%clk 0:02:51.9]}
15... Rad8 {[%clk 0:02:23.9]} 16. Bxe6 {[%clk 0:02:42.7]} 16... fxe6 {[%clk
0:02:18.8]} 17. O-O {[%clk 0:02:43.9]} 17... Nd7 {[%clk 0:02:06.6]} 18. Rad1
{[%clk 0:02:38.9]} 18... Nf6 {[%clk 0:02:05.6]} 19. Ndc4 {[%clk 0:02:38.2]}
19... Nh5 {[%clk 0:02:05.2]} 20. Rxd8 {[%clk 0:02:33.6]} 20... Rxd8 {[%clk
0:02:04.7]} 21. Rd1 {[%clk 0:02:34.8]} 21... Nf4 {[%clk 0:02:05.5]} 22. Rxd8+
{[%clk 0:02:34.9]} 22... Qxd8 {[%clk 0:02:07.4]} 23. Kf1 {[%clk 0:02:31]} 23...
h5 {[%clk 0:01:59.3]} 24. f3 {[%clk 0:02:25.1]} 24... b5 {[%clk 0:01:52.1]} 25.
Nd2 {[%clk 0:02:24]} 25... Qd3+ {[%clk 0:01:43.6]} 26. Qxd3 {[%clk 0:02:23.2]}
26... Nxd3 {[%clk 0:01:44.6]} 27. b3 {[%clk 0:02:24.8]} 27... Nc1 {[%clk
0:01:41.8]} 28. a4 {[%clk 0:02:21.4]} 28... a6 {[%clk 0:01:39.8]} 29. axb5
{[%clk 0:02:21.4]} 29... axb5 {[%clk 0:01:41.7]} 30. Ke1 {[%clk 0:02:12.7]}
30... Na2 {[%clk 0:01:08.8]} 31. Nb1 {[%clk 0:02:05]} 31... Nc1 {[%clk
0:01:08.9]} 32. Nd2 {[%clk 0:02:05.9]} 32... Na2 {[%clk 0:01:09.3]} 33. c4
{[%clk 0:02:03.6]} 33... bxc4 {[%clk 0:01:09.5]} 34. Nexc4 {[%clk 0:02:00.8]}
34... h4 {[%clk 0:01:10.5]} 35. Bf2 {[%clk 0:02:01.1]} 35... Nc3 {[%clk
0:01:10]} 36. h3 {[%clk 0:02:01.2]} 36... Kf7 {[%clk 0:01:10.1]} 37. Be3 {[%clk
0:02:02.1]} 37... Bf6 {[%clk 0:01:08.9]} 38. Nf1 {[%clk 0:02:00.2]} 38... Nb5
{[%clk 0:01:06.1]} 39. Nfd2 {[%clk 0:01:52.6]} 39... Nbd4 {[%clk 0:01:06.5]} 40.
Bxd4 {[%clk 0:01:47.4]} 40... Nxd4 {[%clk 0:01:08.4]} 41. Kf2 {[%clk 0:01:46.5]}
41... Ke7 {[%clk 0:01:07.5]} 42. Ke3 {[%clk 0:01:47.8]} 42... Kd7 {[%clk
0:01:07.5]} 43. Kd3 {[%clk 0:01:48.1]} 43... Kc6 {[%clk 0:01:07.5]} 44. Na3
{[%clk 0:01:49.3]} 44... Kc5 {[%clk 0:01:07.7]} 45. Nc2 {[%clk 0:01:49.5]} 45...
Kb5 {[%clk 0:01:06.7]} 46. Nxd4+ {[%clk 0:01:22.8]} 46... exd4 {[%clk
0:01:08.6]} 47. Nc4 {[%clk 0:01:23.6]} 47... Kb4 {[%clk 0:01:06.5]} 48. e5
{[%clk 0:01:23.4]} 48... Be7 {[%clk 0:01:03]} 49. Kxd4 {[%clk 0:01:21]} 49...
Kxb3 {[%clk 0:01:03.5]} 50. Kd3 {[%clk 0:01:22.3]} 50... c5 {[%clk 0:01:02.8]}
51. Nd6 {[%clk 0:01:20.7]} 51... Kb4 {[%clk 0:01:02.2]} 52. Ne8 {[%clk
0:01:12.5]} 52... c4+ {[%clk 0:01:01.9]} 53. Kc2 {[%clk 0:01:13.3]} 53... Kc5
{[%clk 0:01:02]} 54. Nc7 {[%clk 0:01:14.1]} 54... Kd4 {[%clk 0:01:01.8]} 55.
Nxe6+ {[%clk 0:01:08.2]} 55... Kxe5 {[%clk 0:01:02.4]} 56. Nc7 {[%clk
0:01:02.6]} 56... Bb4 {[%clk 0:01:01.8]} 57. Nb5 {[%clk 0:00:51.9]} 57... Kf4
{[%clk 0:00:57.9]} 58. Nd4 {[%clk 0:00:52.9]} 58... Kg3 {[%clk 0:00:56.2]} 59.
Ne6 {[%clk 0:00:24.1]} 59... Kxg2 {[%clk 0:00:55.8]} 60. Nxg5 {[%clk 0:00:25]}
60... Be7 {[%clk 0:00:56.2]} 61. Nf7 {[%clk 0:00:21.4]} 61... Bf6 {[%clk
0:00:52.4]} 62. Nd6 {[%clk 0:00:21.7]} 62... Kxh3 {[%clk 0:00:52.1]} 63. Nxc4
{[%clk 0:00:21]} 63... Kg3 {[%clk 0:00:48.4]} 64. Ne3 {[%clk 0:00:21.9]} 64...
h3 {[%clk 0:00:48.3]} 65. Kd3 {[%clk 0:00:21.3]} 65... Kxf3 {[%clk 0:00:47.3]}
66. Nf1 {[%clk 0:00:22]} 66... Be5 {[%clk 0:00:38.7]} 67. Kd2 {[%clk 0:00:22.2]}
67... Kf2 {[%clk 0:00:37.6]} 0-1

[Event "*** Titled Tuesday Blitz"]
[Site "Chess.com"]
[Date "2019.05.07"]
[Round "9"]
[White "FancyPlaySyndrome"]
[Black "Sadikhov_Ulvi"]
[Result "1-0"]
[WhiteElo "2550"]
[BlackElo "2684"]
[TimeControl "180+2"]
[EndTime "15:09:17 PDT"]
[Termination "FancyPlaySyndrome won by resignation"]

1. e4 {[%clk 0:03:01.9]} 1... c5 {[%clk 0:03:00.7]} 2. Nf3 {[%clk 0:03:02.2]}
2... Nc6 {[%clk 0:03:01.8]} 3. Bb5 {[%clk 0:03:03.3]} 3... d6 {[%clk 0:03:01.9]}
4. O-O {[%clk 0:03:04.6]} 4... Bd7 {[%clk 0:03:03]} 5. Re1 {[%clk 0:03:05.7]}
5... a6 {[%clk 0:03:04.3]} 6. Bf1 {[%clk 0:03:06.2]} 6... Nf6 {[%clk 0:03:05.8]}
7. h3 {[%clk 0:03:06.8]} 7... e5 {[%clk 0:02:53]} 8. c3 {[%clk 0:03:07.5]} 8...
Be7 {[%clk 0:02:54]} 9. d4 {[%clk 0:03:08.6]} 9... O-O {[%clk 0:02:53.1]} 10.
Na3 {[%clk 0:03:07.2]} 10... Qc7 {[%clk 0:02:53.3]} 11. Nc2 {[%clk 0:03:04.7]}
11... Rfe8 {[%clk 0:02:51.1]} 12. g3 {[%clk 0:02:59.2]} 12... Bf8 {[%clk
0:02:51.6]} 13. d5 {[%clk 0:02:58.3]} 13... Nd8 {[%clk 0:02:37.8]} 14. a4 {[%clk
0:02:55.4]} 14... b6 {[%clk 0:02:33.2]} 15. Bg5 {[%clk 0:02:55.1]} 15... Be7
{[%clk 0:02:32.9]} 16. Bg2 {[%clk 0:02:50.8]} 16... Nb7 {[%clk 0:02:32.7]} 17.
b3 {[%clk 0:02:49.9]} 17... b5 {[%clk 0:02:30.4]} 18. axb5 {[%clk 0:02:49.7]}
18... axb5 {[%clk 0:02:31.3]} 19. Rb1 {[%clk 0:02:37.6]} 19... Ra2 {[%clk
0:02:26.3]} 20. Nh2 {[%clk 0:02:37.5]} 20... Rea8 {[%clk 0:02:24.2]} 21. Ne3
{[%clk 0:02:34.3]} 21... Qd8 {[%clk 0:02:18.3]} 22. f4 {[%clk 0:02:28.3]} 22...
h6 {[%clk 0:02:09.4]} 23. Bxf6 {[%clk 0:02:25.9]} 23... Bxf6 {[%clk 0:02:07.1]}
24. f5 {[%clk 0:02:21.3]} 24... b4 {[%clk 0:01:56.1]} 25. c4 {[%clk 0:02:04]}
25... R8a3 {[%clk 0:01:55]} 26. h4 {[%clk 0:02:02.9]} 26... Na5 {[%clk
0:01:54.6]} 27. Nf3 {[%clk 0:01:57.4]} 27... h5 {[%clk 0:01:22.6]} 28. Bf1
{[%clk 0:01:54.5]} 28... g6 {[%clk 0:01:21.1]} 29. fxg6 {[%clk 0:01:54.7]} 29...
fxg6 {[%clk 0:01:22.1]} 30. Re2 {[%clk 0:01:54.4]} 30... Qc8 {[%clk 0:01:16.6]}
31. Rxa2 {[%clk 0:01:43]} 31... Rxa2 {[%clk 0:01:17.4]} 32. Nd2 {[%clk
0:01:33.4]} 32... Bg7 {[%clk 0:01:13.5]} 33. Be2 {[%clk 0:01:25.6]} 33... Bh6
{[%clk 0:01:13.8]} 34. Nef1 {[%clk 0:01:27]} 34... Bh3 {[%clk 0:01:09.6]} 35.
Kh2 {[%clk 0:01:09.4]} 35... Bxf1 {[%clk 0:01:03.5]} 36. Nxf1 {[%clk 0:01:11]}
36... Qg4 {[%clk 0:01:02.3]} 37. Nd2 {[%clk 0:01:07]} 37... Rxd2 {[%clk
0:01:01.2]} 38. Qxd2 {[%clk 0:01:08.3]} 38... Bxd2 {[%clk 0:01:01.7]} 39. Bxg4
{[%clk 0:01:10]} 39... hxg4 {[%clk 0:01:02.6]} 40. Kg2 {[%clk 0:01:11.8]} 40...
Kf7 {[%clk 0:01:01.1]} 41. Kf2 {[%clk 0:01:12.2]} 41... Ke7 {[%clk 0:00:59.1]}
42. Ke2 {[%clk 0:01:13.7]} 42... Bc3 {[%clk 0:00:59]} 43. Kd3 {[%clk 0:01:14.1]}
43... Bd4 {[%clk 0:01:00.3]} 44. Ke2 {[%clk 0:01:14]} 44... Kd7 {[%clk
0:01:01.2]} 45. Kd3 {[%clk 0:01:12.5]} 45... Kc7 {[%clk 0:01:02.2]} 46. Kc2
{[%clk 0:01:12.9]} 46... Kd7 {[%clk 0:01:02.2]} 47. Rf1 {[%clk 0:01:12.4]} 47...
Ke7 {[%clk 0:01:02.6]} 48. Rh1 {[%clk 0:01:11.6]} 48... Nb7 {[%clk 0:00:48.3]}
49. h5 {[%clk 0:01:09.6]} 49... gxh5 {[%clk 0:00:42.5]} 50. Rxh5 {[%clk
0:01:11.5]} 50... Nd8 {[%clk 0:00:37.6]} 51. Rg5 {[%clk 0:01:11.1]} 51... Nf7
{[%clk 0:00:36.2]} 52. Rxg4 {[%clk 0:01:12.3]} 52... Kf6 {[%clk 0:00:35.5]} 53.
Kd3 {[%clk 0:01:11.5]} 53... Ng5 {[%clk 0:00:24.9]} 54. Ke2 {[%clk 0:01:12.4]}
54... Kg6 {[%clk 0:00:23.7]} 55. Rh4 {[%clk 0:01:13.8]} 55... Bc3 {[%clk
0:00:23.5]} 56. Ke3 {[%clk 0:01:11.7]} 56... Be1 {[%clk 0:00:23.9]} 57. Rh8
{[%clk 0:01:03.8]} 57... Bxg3 {[%clk 0:00:22.9]} 58. Rd8 {[%clk 0:01:05.2]}
58... Nf7 {[%clk 0:00:22.4]} 59. Rg8+ {[%clk 0:01:03.1]} 59... Kh5 {[%clk
0:00:19]} 60. Rxg3 {[%clk 0:01:04.1]} 60... Ng5 {[%clk 0:00:20.1]} 61. Rg1
{[%clk 0:01:04.7]} 61... Kg6 {[%clk 0:00:21]} 62. Ra1 {[%clk 0:01:04.6]} 62...
Kf6 {[%clk 0:00:21.9]} 63. Ra6 {[%clk 0:01:05]} 63... Nf7 {[%clk 0:00:22.9]} 64.
Ra7 {[%clk 0:01:02.4]} 64... Kg6 {[%clk 0:00:23.9]} 65. Kf3 {[%clk 0:01:01.8]}
65... Kf6 {[%clk 0:00:24.8]} 66. Kg4 {[%clk 0:01:02.6]} 66... Ng5 {[%clk
0:00:25.7]} 67. Rd7 {[%clk 0:01:03.1]} 67... Nxe4 {[%clk 0:00:26.9]} 68. Kh4
{[%clk 0:00:52.6]} 68... Kf5 {[%clk 0:00:21.5]} 69. Rf7+ {[%clk 0:00:47.4]}
69... Nf6 {[%clk 0:00:22.6]} 70. Re7 {[%clk 0:00:45.5]} 70... e4 {[%clk
0:00:18.6]} 71. Re6 {[%clk 0:00:46]} 71... Ng4 {[%clk 0:00:18.4]} 72. Kg3 {[%clk
0:00:41.2]} 72... Ne5 {[%clk 0:00:11.3]} 73. Rxd6 {[%clk 0:00:42]} 73... Nf3
{[%clk 0:00:11.7]} 74. Re6 {[%clk 0:00:39.5]} 74... Nd4 {[%clk 0:00:11.8]} 75.
Re8 {[%clk 0:00:40.3]} 75... Nxb3 {[%clk 0:00:08.9]} 76. d6 {[%clk 0:00:41.4]}
76... Na5 {[%clk 0:00:10.1]} 77. d7 {[%clk 0:00:41.1]} 77... Nc6 {[%clk
0:00:11.3]} 78. d8=Q {[%clk 0:00:39.5]} 78... Nxd8 {[%clk 0:00:11.8]} 79. Rxd8
{[%clk 0:00:41.4]} 79... Ke5 {[%clk 0:00:12.3]} 80. Rd5+ {[%clk 0:00:42.7]}
80... Ke6 {[%clk 0:00:13.5]} 81. Kf4 {[%clk 0:00:44]} 81... b3 {[%clk
0:00:14.6]} 82. Rxc5 {[%clk 0:00:45.1]} 82... b2 {[%clk 0:00:16.1]} 83. Rb5
{[%clk 0:00:46.6]} 1-0

[Event "*** Titled Tuesday Blitz"]
[Site "Chess.com"]
[Date "2019.05.07"]
[Round "9"]
[White "gliglu"]
[Black "vovachesss"]
[Result "0-1"]
[WhiteElo "2549"]
[BlackElo "2547"]
[TimeControl "180+2"]
[EndTime "15:09:25 PDT"]
[Termination "vovachesss won by resignation"]

1. d4 {[%clk 0:03:00.1]} 1... b6 {[%clk 0:02:56.8]} 2. c4 {[%clk 0:03:00.3]}
2... Bb7 {[%clk 0:02:58.7]} 3. d5 {[%clk 0:03:00.6]} 3... e6 {[%clk 0:03:00.2]}
4. a3 {[%clk 0:03:01.1]} 4... Nf6 {[%clk 0:03:01]} 5. Nc3 {[%clk 0:03:01.2]}
5... exd5 {[%clk 0:02:59.8]} 6. cxd5 {[%clk 0:03:01.4]} 6... g6 {[%clk
0:02:55.9]} 7. g3 {[%clk 0:03:02.1]} 7... Bg7 {[%clk 0:02:57.4]} 8. Bg2 {[%clk
0:03:03.1]} 8... O-O {[%clk 0:02:59.1]} 9. Nh3 {[%clk 0:03:04]} 9... Re8 {[%clk
0:03:00]} 10. O-O {[%clk 0:03:04.8]} 10... a5 {[%clk 0:02:57.3]} 11. Bf4 {[%clk
0:02:59.4]} 11... Na6 {[%clk 0:02:57.3]} 12. Rc1 {[%clk 0:02:50.9]} 12... d6
{[%clk 0:02:51.5]} 13. Ng5 {[%clk 0:02:44.8]} 13... h6 {[%clk 0:02:46.8]} 14.
Nf3 {[%clk 0:02:45.7]} 14... Nc5 {[%clk 0:02:48]} 15. Nd4 {[%clk 0:02:46]} 15...
a4 {[%clk 0:02:44.8]} 16. Nc6 {[%clk 0:02:46.5]} 16... Bxc6 {[%clk 0:02:43.4]}
17. dxc6 {[%clk 0:02:47.5]} 17... Nfe4 {[%clk 0:02:39]} 18. Nxe4 {[%clk
0:02:38.3]} 18... Nxe4 {[%clk 0:02:39.7]} 19. Rc4 {[%clk 0:02:38.3]} 19... Nc5
{[%clk 0:02:38.6]} 20. Qc2 {[%clk 0:02:33.2]} 20... Qf6 {[%clk 0:02:34.7]} 21.
Bc1 {[%clk 0:02:31.1]} 21... Re7 {[%clk 0:02:27.7]} 22. Rf4 {[%clk 0:02:31.2]}
22... Qe6 {[%clk 0:02:26.4]} 23. Bf3 {[%clk 0:02:17.4]} 23... Rae8 {[%clk
0:02:14]} 24. Rd1 {[%clk 0:02:17.6]} 24... Ra8 {[%clk 0:01:15.7]} 25. Bd5 {[%clk
0:02:11.2]} 25... Qe5 {[%clk 0:01:10.1]} 26. Rf3 {[%clk 0:02:01.8]} 26... Rae8
{[%clk 0:01:04.2]} 27. Qc4 {[%clk 0:01:44.7]} 27... Rf8 {[%clk 0:00:50.6]} 28.
Kf1 {[%clk 0:01:19.7]} 28... Qh5 {[%clk 0:00:41.4]} 29. h4 {[%clk 0:01:12.2]}
29... Nb3 {[%clk 0:00:31.5]} 30. Bf4 {[%clk 0:01:05.9]} 30... Bxb2 {[%clk
0:00:26.4]} 31. Qxa4 {[%clk 0:01:05.9]} 31... Nc5 {[%clk 0:00:27.2]} 32. Qc2
{[%clk 0:01:03.2]} 32... Be5 {[%clk 0:00:24.9]} 33. Bxe5 {[%clk 0:01:01]} 33...
Rxe5 {[%clk 0:00:24.6]} 34. Qc4 {[%clk 0:00:49]} 34... Kg7 {[%clk 0:00:22.4]}
35. Bxf7 {[%clk 0:00:45]} 35... b5 {[%clk 0:00:14.6]} 36. Qf4 {[%clk 0:00:39.9]}
36... Qf5 {[%clk 0:00:07.9]} 37. Qd2 {[%clk 0:00:35.1]} 37... Qh3+ {[%clk
0:00:07.2]} 38. Kg1 {[%clk 0:00:36]} 38... Rxf7 {[%clk 0:00:08.7]} 39. Rxf7+
{[%clk 0:00:36.5]} 39... Kxf7 {[%clk 0:00:10.6]} 40. Qxh6 {[%clk 0:00:37.5]}
40... Qe6 {[%clk 0:00:04.5]} 41. e3 {[%clk 0:00:32.9]} 41... Qf6 {[%clk
0:00:05.1]} 42. Rd4 {[%clk 0:00:33]} 42... Rh5 {[%clk 0:00:06.1]} 43. Qf4 {[%clk
0:00:31.5]} 43... Qxf4 {[%clk 0:00:07.5]} 44. Rxf4+ {[%clk 0:00:30.7]} 44... Ke6
{[%clk 0:00:09]} 45. Kg2 {[%clk 0:00:30]} 45... g5 {[%clk 0:00:10.4]} 46. hxg5
{[%clk 0:00:28.3]} 46... Rxg5 {[%clk 0:00:12.3]} 47. Rf8 {[%clk 0:00:29.3]}
47... Kd5 {[%clk 0:00:13.4]} 48. f4 {[%clk 0:00:28.5]} 48... Rg7 {[%clk
0:00:14.6]} 49. Kf3 {[%clk 0:00:29]} 49... Kxc6 {[%clk 0:00:15.8]} 50. g4 {[%clk
0:00:30.4]} 50... Ne6 {[%clk 0:00:12.1]} 51. Re8 {[%clk 0:00:30.4]} 51... Kd7
{[%clk 0:00:13.4]} 52. Rb8 {[%clk 0:00:31.3]} 52... Kc6 {[%clk 0:00:13.2]} 53.
g5 {[%clk 0:00:31.8]} 53... Kd5 {[%clk 0:00:12.3]} 54. Kg4 {[%clk 0:00:32.6]}
54... Ke4 {[%clk 0:00:13.3]} 55. Re8 {[%clk 0:00:32.2]} 55... Rg6 {[%clk
0:00:12.1]} 56. Kh5 {[%clk 0:00:29.3]} 56... Kf5 {[%clk 0:00:10.4]} 57. e4+
{[%clk 0:00:30.2]} 57... Kxf4 {[%clk 0:00:10.6]} 58. Kxg6 {[%clk 0:00:31.2]}
58... Nxg5 {[%clk 0:00:11.6]} 59. Rf8+ {[%clk 0:00:30.5]} 59... Kg4 {[%clk
0:00:13]} 60. Re8 {[%clk 0:00:29.4]} 60... Kf4 {[%clk 0:00:14]} 61. Re7 {[%clk
0:00:28.7]} 61... Nxe4 {[%clk 0:00:15.1]} 62. Rxc7 {[%clk 0:00:29.2]} 62... d5
{[%clk 0:00:14.5]} 63. Rb7 {[%clk 0:00:28.4]} 63... Nc3 {[%clk 0:00:14.4]} 64.
Rc7 {[%clk 0:00:27.8]} 64... d4 {[%clk 0:00:15.7]} 65. Kf6 {[%clk 0:00:27.6]}
65... Ke4 {[%clk 0:00:16.9]} 66. Re7+ {[%clk 0:00:27.8]} 66... Kd3 {[%clk
0:00:17.3]} 67. Ke5 {[%clk 0:00:29]} 67... Ke3 {[%clk 0:00:15.3]} 68. Kf5+
{[%clk 0:00:29.7]} 68... Kd2 {[%clk 0:00:16.4]} 69. Rh7 {[%clk 0:00:26.7]} 69...
d3 {[%clk 0:00:16.8]} 70. Rh2+ {[%clk 0:00:27.5]} 70... Kc1 {[%clk 0:00:18.3]}
71. Rh1+ {[%clk 0:00:26.9]} 71... Kc2 {[%clk 0:00:18.4]} 72. Ke5 {[%clk
0:00:23.3]} 72... d2 {[%clk 0:00:18]} 73. Kd4 {[%clk 0:00:24.1]} 73... d1=Q+
{[%clk 0:00:18.3]} 74. Rxd1 {[%clk 0:00:24.9]} 74... Nxd1 {[%clk 0:00:20.2]} 75.
Kc5 {[%clk 0:00:25.5]} 75... Nc3 {[%clk 0:00:21.1]} 76. Kb4 {[%clk 0:00:25.9]}
76... Kb2 {[%clk 0:00:22.6]} 0-1